bitfinex/quotes_BTCUSD_20240729
["timestamp","ask_amount","ask_price","bid_price","bid_amount"]
[1722267588991,0.01516727,68145.0,68135.0,0.023]
[1722267589142,0.01516727,68145.0,68144.0,0.146748]
[1722267589347,0.02179345,68145.0,68144.0,0.28984739]
[1722267589556,0.01516727,68145.0,68144.0,0.58334339]
[1722267589761,0.01516727,68145.0,68144.0,0.28984739]
[1722267590002,0.01516727,68145.0,68144.0,0.14309939]
[1722267590204,0.01516727,68145.0,68144.0,0.28984739]
[1722267590414,0.01516727,68145.0,68144.0,0.14309939]
[1722267590615,0.01516727,68145.0,68144.0,0.58334339]
[1722267590816,0.01516727,68145.0,68144.0,1.17033539]
[1722267591045,0.01516727,68145.0,68144.0,1.29333539]
[1722267591242,0.0819,68158.0,68157.0,0.44016]
[1722267591447,0.0819,68158.0,68157.0,0.28981939]
[1722267591728,0.0819,68158.0,68157.0,0.58325939]
[1722267592032,0.293236,68205.0,68164.0,0.146703]
[1722267592033,0.1369,68171.0,68164.0,0.146703]
[1722267592393,0.1369,68171.0,68165.0,0.14309939]
[1722267592577,0.1369,68171.0,68168.0,0.146696]
[1722267592709,0.1369,68171.0,68170.0,0.440076]
[1722267592909,0.1369,68171.0,68170.0,0.58317539]
[1722267593116,0.1369,68171.0,68170.0,0.87655939]
[1722267593532,0.1369,68171.0,68170.0,1.16994339]
[1722267593743,0.138,68181.0,68180.0,0.14667]
[1722267593941,0.138,68181.0,68180.0,0.440011]
[1722267594371,0.138,68181.0,68180.0,0.14667]
[1722267594568,0.138,68181.0,68180.0,0.440011]
[1722267594950,0.138,68181.0,68180.0,0.58311039]
[1722267595443,0.138,68181.0,68180.0,0.87645139]
[1722267595695,0.0758,68181.0,68180.0,1.16979239]
[1722267596271,0.2908,68189.0,68188.0,0.733265]
[1722267596925,0.0622,68190.0,68189.0,0.439953]
[1722267597151,0.0622,68190.0,68189.0,1.16965639]
[1722267597558,0.0622,68190.0,68178.0,0.04798734]
[1722267597799,0.0622,68190.0,68171.0,0.1]
[1722267597800,0.2908,68183.0,68182.0,0.146666]
[1722267598011,0.07154355,68190.0,68183.0,0.293327]
[1722267598213,0.07154355,68190.0,68179.0,0.14309939]
[1722267598465,0.07154355,68190.0,68189.0,0.146651]
[1722267598649,0.0758,68191.0,68190.0,0.439947]
[1722267598868,0.2908,68198.0,68197.0,0.14626236]
[1722267599152,0.07154355,68200.0,68190.0,0.14309939]
[1722267599153,0.07154355,68200.0,68199.0,0.439888]
[1722267599331,0.05,68214.0,68183.0,0.05]
[1722267599332,0.2908,68214.0,68197.0,0.14309939]
[1722267599571,0.2908,68214.0,68187.0,0.48275415]
[1722267599572,0.07154355,68208.0,68207.0,0.146612]
[1722267599795,0.07154355,68208.0,68205.0,0.293233]
[1722267599954,0.12154355,68222.0,68188.0,0.123]
[1722267599955,0.36234355,68222.0,68210.0,0.73303]
[1722267600176,0.36234355,68222.0,68210.0,0.439818]
[1722267600417,0.36234355,68222.0,68210.0,0.73303]
[1722267600418,0.36154355,68222.0,68210.0,0.73303]
[1722267600638,0.36154355,68222.0,68195.0,0.1]
[1722267600639,0.29,68215.0,68195.0,0.1]
[1722267600831,0.07154355,68222.0,68186.0,0.1]
[1722267600832,0.07154355,68196.0,68186.0,0.1]
[1722267601054,0.07154355,68196.0,68171.0,0.3]
[1722267601055,0.07154355,68188.0,68187.0,0.42926131]
[1722267601266,0.0015542,68195.0,68187.0,0.42926131]
[1722267601485,0.12154355,68210.0,68188.0,0.1]
[1722267601486,0.0015542,68202.0,68188.0,0.1]
[1722267601698,0.29,68205.0,68181.0,0.1]
[1722267601699,0.00688183,68194.0,68181.0,0.1]
[1722267601915,0.0831,68196.0,68189.0,0.14309939]
[1722267602130,0.0831,68196.0,68195.0,0.146638]
[1722267602344,0.29,68208.0,68195.0,0.14309939]
[1722267602559,0.0814,68207.0,68196.0,0.14309939]
[1722267602775,0.0814,68207.0,68179.0,0.05]
[1722267602776,0.0015542,68202.0,68189.0,0.14309939]
[1722267602994,0.0015542,68202.0,68185.0,0.293318]
[1722267602995,0.07154355,68196.0,68185.0,0.293318]
[1722267603201,0.07154355,68195.0,68186.0,0.5723607]
[1722267603433,0.00696089,68195.0,68187.0,0.14309939]
[1722267603634,0.07309775,68194.0,68178.0,0.1]
[1722267603873,0.0633542,68191.0,68179.0,0.14309939]
[1722267604301,0.0015542,68186.0,68179.0,0.14309939]
[1722267604535,0.0015542,68183.0,68172.0,0.146686]
[1722267604743,0.0015542,68183.0,68157.0,0.014]
[1722267604744,0.0829,68175.0,68163.0,0.1]
[1722267604943,0.0015542,68174.0,68169.0,0.42926131]
[1722267605156,0.00860137,68174.0,68169.0,0.14309939]
[1722267605374,0.00860137,68174.0,68163.0,0.246707]
[1722267605375,0.0015542,68174.0,68163.0,0.246707]
[1722267605549,0.00704319,68173.0,68164.0,0.14309939]
[1722267605837,0.0829,68175.0,68164.0,0.14309939]
[1722267605838,0.0015542,68172.0,68171.0,0.146689]
[1722267606020,0.00859256,68172.0,68171.0,0.146689]
[1722267606149,0.00859256,68172.0,68171.0,0.440068]
[1722267606150,0.0015542,68172.0,68171.0,0.440068]
[1722267606350,0.0015542,68174.0,68171.0,0.146689]
[1722267606571,0.0015542,68174.0,68172.0,0.14309939]
[1722267606750,0.0015542,68183.0,68181.0,0.146667]
[1722267606972,0.0015542,68183.0,68179.0,0.146671]
[1722267607211,0.0015542,68183.0,68182.0,0.146666]
[1722267607518,0.0015542,68183.0,68180.0,0.14309939]
[1722267607519,0.0762,68185.0,68180.0,0.28976839]
[1722267607724,0.0762,68185.0,68180.0,0.14309939]
[1722267607965,0.0762,68185.0,68171.0,0.1]
[1722267607966,0.29,68182.0,68172.0,0.146686]
[1722267608196,0.07154355,68177.0,68161.0,0.42926131]
[1722267608440,0.0015542,68176.0,68162.0,0.24309939]
[1722267608680,0.0015542,68176.0,68167.0,0.146698]
[1722267608912,0.02300675,68174.0,68168.0,0.14309939]
[1722267609157,0.07154355,68177.0,68168.0,0.14309939]
[1722267609158,0.0015542,68173.0,68169.0,0.293388]
[1722267609388,0.0015542,68173.0,68169.0,0.14309939]
[1722267609648,0.0015542,68176.0,68170.0,0.293383]
[1722267609927,0.0015542,68176.0,68175.0,0.146681]
[1722267610164,0.0015542,68181.0,68180.0,0.14667]
[1722267610409,0.0015542,68181.0,68180.0,0.733352]
[1722267610659,0.0015542,68181.0,68180.0,0.440011]
[1722267610855,0.07154355,68184.0,68175.0,0.14309939]
[1722267611009,0.07154355,68184.0,68182.0,0.146666]
[1722267611010,0.0015542,68183.0,68182.0,0.146666]
[1722267611419,0.07154355,68184.0,68180.0,0.29334]
[1722267611622,0.0762,68185.0,68184.0,0.146661]
[1722267611821,0.3518,68191.0,68182.0,0.146665]
[1722267612145,0.00709099,68185.0,68182.0,0.146665]
[1722267612357,0.3518,68191.0,68180.0,0.14309939]
[1722267612516,0.02300574,68189.0,68180.0,0.14309939]
[1722267612925,0.02300574,68189.0,68161.0,0.42926131]
[1722267612926,0.29,68181.0,68161.0,0.42926131]
[1722267613128,0.29,68172.0,68161.0,0.42926131]
[1722267613329,0.0627,68171.0,68163.0,0.293412]
[1722267613530,0.0015542,68170.0,68164.0,0.14309939]
[1722267614569,0.00702725,68169.0,68164.0,0.14309939]
[1722267614775,0.00702725,68169.0,68158.0,0.246717]
[1722267614776,0.07309775,68168.0,68158.0,0.246717]
[1722267614975,0.07309775,68168.0,68148.0,0.359776]
[1722267614976,0.07309775,68168.0,68159.0,0.14309939]
[1722267615194,0.00701928,68167.0,68159.0,0.14309939]
[1722267615527,0.0015542,68166.0,68165.0,0.440107]
[1722267615734,0.0015542,68166.0,68165.0,0.87661139]
[1722267616033,0.02456487,68166.0,68165.0,0.87661139]
[1722267616224,0.02301067,68166.0,68165.0,1.17001639]
[1722267616567,0.02301067,68166.0,68165.0,1.32238411]
[1722267616859,0.0627,68179.0,68172.0,0.146686]
[1722267617052,0.0627,68179.0,68172.0,0.14309939]
[1722267617209,0.00701899,68178.0,68175.0,0.44004]
[1722267617388,0.0015542,68177.0,68173.0,0.293371]
[1722267617590,0.0627,68179.0,68175.0,0.293362]
[1722267617591,0.00701102,68176.0,68175.0,0.293362]
[1722267617789,0.0627,68179.0,68177.0,0.146675]
[1722267617991,0.0756,68183.0,68177.0,0.293353]
[1722267618243,0.29,68188.0,68179.0,0.293343]
[1722267618585,0.0756,68192.0,68180.0,0.14309939]
[1722267618771,0.0756,68192.0,68182.0,0.146665]
[1722267618772,0.3656,68192.0,68182.0,0.146665]
[1722267618979,0.37730522,68192.0,68180.0,0.14309939]
[1722267619175,0.36154355,68185.0,68163.0,0.143]
[1722267619387,0.29,68185.0,68176.0,0.42926131]
[1722267619577,0.1553,68191.0,68184.0,0.146661]
[1722267619785,0.1553,68191.0,68182.0,0.146665]
[1722267619786,0.0230066,68183.0,68182.0,0.146665]
[1722267620183,0.08730522,68192.0,68176.0,0.14309939]
[1722267620359,0.08730522,68192.0,68171.0,0.1]
[1722267620360,0.08730522,68192.0,68186.0,0.146657]
[1722267620561,0.08730522,68192.0,68186.0,0.146656]
[1722267620773,0.08730522,68192.0,68191.0,0.146646]
[1722267620977,0.08730522,68192.0,68189.0,0.14665]
[1722267621318,0.3671,68201.0,68190.0,0.14309939]
[1722267621913,0.3671,68201.0,68197.0,0.293267]
[1722267622108,0.3671,68201.0,68191.0,0.1523194]
[1722267622109,0.3657,68210.0,68198.0,0.14309939]
[1722267622309,0.3657,68210.0,68199.0,0.15229956]
[1722267622512,0.08739951,68210.0,68204.0,0.293236]
[1722267622712,0.08739951,68210.0,68187.0,0.1]
[1722267622713,0.07154355,68209.0,68187.0,0.1]
[1722267622877,0.07154355,68209.0,68201.0,0.146624]
[1722267623077,0.07154355,68209.0,68189.0,0.42926131]
[1722267623432,0.02299999,68208.0,68195.0,0.293274]
[1722267623663,0.07154355,68209.0,68196.0,0.29540117]
[1722267623882,0.07154355,68209.0,68202.0,0.293246]
[1722267624092,0.07154355,68209.0,68196.0,0.14309939]
[1722267624319,0.07154355,68209.0,68205.0,0.146615]
[1722267624558,0.07154355,68209.0,68206.0,0.146613]
[1722267624769,0.08283718,68209.0,68205.0,0.293232]
[1722267625015,0.08283718,68209.0,68208.0,0.43983]
[1722267625270,0.29,68218.0,68208.0,0.14309939]
[1722267625491,0.07154355,68222.0,68187.0,0.393309]
[1722267625492,0.07154355,68222.0,68221.0,0.146582]
[1722267625779,0.07154355,68222.0,68221.0,0.439746]
[1722267626219,0.08288063,68222.0,68221.0,0.439746]
[1722267626545,9e-05,68224.0,68223.0,0.146578]
[1722267626748,9e-05,68224.0,68218.0,0.293173]
[1722267626952,0.07154355,68222.0,68221.0,0.439746]
[1722267627155,0.07154355,68222.0,68209.0,0.14309939]
[1722267627156,0.07154355,68222.0,68213.0,0.146598]
[1722267627354,0.29,68216.0,68215.0,0.439785]
[1722267627555,0.07154355,68222.0,68220.0,0.146583]
[1722267627757,0.07154355,68222.0,68212.0,0.293203]
[1722267627758,0.29,68223.0,68219.0,0.146586]
[1722267628144,0.29,68223.0,68210.0,0.04332006]
[1722267628145,0.07154355,68220.0,68210.0,0.04332006]
[1722267628362,0.07154355,68220.0,68200.0,0.03634892]
[1722267628363,0.07154355,68213.0,68200.0,0.03634892]
[1722267628564,0.07154355,68213.0,68211.0,0.04363581]
[1722267628766,9e-05,68224.0,68209.0,0.04363581]
[1722267628767,0.0015542,68212.0,68209.0,0.04363581]
[1722267628965,0.0015542,68212.0,68201.0,0.14309939]
[1722267628966,0.07154355,68221.0,68210.0,0.06544924]
[1722267629176,0.07154355,68221.0,68211.0,0.04362975]
[1722267629385,9e-05,68224.0,68211.0,0.04362975]
[1722267629386,9e-05,68224.0,68213.0,0.04362975]
[1722267629575,9e-05,68224.0,68214.0,0.04362975]
[1722267629918,9e-05,68224.0,68219.0,0.146585]
[1722267630132,9e-05,68224.0,68220.0,0.1]
[1722267630354,9e-05,68224.0,68220.0,0.04362975]
[1722267630572,9e-05,68224.0,68217.0,0.04362975]
[1722267630842,9e-05,68224.0,68216.0,0.04362975]
[1722267631022,9e-05,68224.0,68214.0,0.06544463]
[1722267631023,9e-05,68224.0,68218.0,0.293177]
[1722267631282,9e-05,68224.0,68220.0,0.04362975]
[1722267631500,0.02299401,68223.0,68219.0,0.04362975]
[1722267631725,0.01215105,68223.0,68219.0,0.04362975]
[1722267631949,0.01215105,68223.0,68220.0,0.293169]
[1722267632121,0.01215105,68223.0,68220.0,0.04362975]
[1722267632362,0.01215105,68223.0,68221.0,0.19023609]
[1722267632580,0.01215105,68223.0,68222.0,0.14658]
[1722267632793,9e-05,68224.0,68221.0,0.04365509]
[1722267632794,9e-05,68224.0,68221.0,0.293164]
[1722267633021,9e-05,68224.0,68223.0,0.146578]
[1722267633224,9e-05,68224.0,68223.0,0.439734]
[1722267633455,0.2901,68237.0,68224.0,0.29315]
[1722267633456,0.0757,68234.0,68224.0,0.29315]
[1722267633680,0.0757,68234.0,68228.0,0.146566]
[1722267633908,0.0757,68234.0,68220.0,0.06548264]
[1722267633909,0.01221644,68233.0,68229.0,0.04365509]
[1722267634120,0.01221644,68233.0,68232.0,0.04364465]
[1722267634343,0.01221644,68233.0,68232.0,0.21204064]
[1722267634581,0.00827,68243.0,68232.0,0.468292]
[1722267634788,0.00827,68243.0,68235.0,0.19019612]
[1722267635005,0.00827,68243.0,68233.0,0.06546768]
[1722267635006,0.01003355,68242.0,68237.0,0.04364512]
[1722267635231,0.00827,68243.0,68234.0,0.35857368]
[1722267635232,0.02298962,68241.0,68236.0,0.04364512]
[1722267635420,0.03308126,68241.0,68238.0,0.04364512]
[1722267635652,0.03308126,68241.0,68236.0,0.04364512]
[1722267636139,0.03308126,68241.0,68235.0,0.04364512]
[1722267636140,0.2901,68238.0,68235.0,0.04364512]
[1722267636343,0.2901,68238.0,68231.0,0.04364512]
[1722267636560,0.2901,68238.0,68230.0,0.04364512]
[1722267636561,0.0101149,68237.0,68230.0,0.04364512]
[1722267636785,0.0101149,68237.0,68231.0,0.04364512]
[1722267637003,0.00827,68243.0,68231.0,0.04364512]
[1722267637004,0.07981355,68243.0,68232.0,0.293114]
[1722267637285,0.07981355,68243.0,68234.0,0.04364512]
[1722267637286,0.01009937,68242.0,68234.0,0.04364512]
[1722267637515,0.01009937,68242.0,68235.0,0.14655]
[1722267637721,0.01009937,68242.0,68234.0,0.04364512]
[1722267637921,0.01009937,68242.0,68233.0,0.04364512]
[1722267638198,0.01009937,68242.0,68233.0,0.146555]
[1722267638430,0.01009937,68242.0,68233.0,0.146556]
[1722267638636,0.01009937,68242.0,68232.0,0.04363865]
[1722267638637,0.0015542,68235.0,68232.0,0.04363865]
[1722267638760,0.0015542,68235.0,68231.0,0.293121]
[1722267638946,0.2901,68239.0,68233.0,0.146556]
[1722267639171,0.23441355,68243.0,68233.0,0.732782]
[1722267639172,0.01008781,68234.0,68233.0,0.732782]
[1722267639430,0.23441355,68243.0,68231.0,0.04363865]
[1722267639431,0.0015542,68242.0,68231.0,0.04363865]
[1722267639569,0.0015542,68242.0,68229.0,0.06545798]
[1722267639570,0.00827,68243.0,68236.0,0.0649]
[1722267639788,0.00980753,68242.0,68236.0,0.0649]
[1722267640019,0.00827,68243.0,68236.0,0.10853865]
[1722267640244,0.00994232,68242.0,68237.0,0.293095]
[1722267640475,0.00994232,68242.0,68241.0,1.025773]
[1722267640704,0.05,68259.0,68250.0,6.76196946]
[1722267641007,0.65474294,68264.0,68250.0,6.76196946]
[1722267641167,0.65474294,68264.0,68251.0,0.14309939]
[1722267641168,0.01137825,68264.0,68251.0,0.14309939]
[1722267641399,0.07154355,68263.0,68250.0,6.76196946]
[1722267641665,0.1546,68262.0,68250.0,6.76196946]
[1722267641873,0.08900752,68266.0,68264.0,0.146489]
[1722267642235,0.08900752,68266.0,68251.0,0.14309939]
[1722267642236,0.00855119,68265.0,68251.0,0.14309939]
[1722267642474,0.00855119,68265.0,68263.0,0.146491]
[1722267642674,0.07154355,68263.0,68250.0,6.76196946]
[1722267642850,0.07154355,68263.0,68253.0,0.146512]
[1722267643056,0.07154355,68263.0,68250.0,6.76196946]
[1722267643273,0.08900752,68266.0,68254.0,0.14309939]
[1722267643649,0.02298204,68260.0,68259.0,0.1465]
[1722267644031,0.07154355,68264.0,68255.0,0.0616]
[1722267644234,0.00849706,68260.0,68250.0,6.76196946]
[1722267644436,0.07154355,68264.0,68250.0,6.90506885]
[1722267644635,0.07154355,68256.0,68250.0,6.76196946]
[1722267645099,0.1423,68255.0,68250.0,6.76196946]
[1722267645227,0.1546,68254.0,68250.0,6.76196946]
[1722267645634,0.079,68255.0,68250.0,6.76196946]
[1722267645845,0.079,68255.0,68250.0,6.90848846]
[1722267646038,0.0633,68261.0,68250.0,6.76196946]
[1722267646246,0.0811,68262.0,68250.0,6.90506885]
[1722267646453,0.0811,68262.0,68254.0,0.14651]
[1722267646657,0.0811,68262.0,68250.0,6.90506885]
[1722267646861,0.0811,68262.0,68251.0,0.146517]
[1722267647062,0.07154355,68271.0,68251.0,0.146517]
[1722267647063,0.14641,68301.0,68300.0,3.09857996]
[1722267647396,1.30584562,68301.0,68300.0,2.60037505]
[1722267647565,1.91448762,68301.0,68300.0,2.59156633]
[1722267647763,1.9125202,68301.0,68300.0,2.52399191]
[1722267647988,1.9125202,68301.0,68300.0,2.51518319]
[1722267647989,1.92269387,68301.0,68300.0,2.51518319]
[1722267648215,1.92269387,68301.0,68300.0,2.4998568]
[1722267648424,1.92269387,68301.0,68300.0,2.49145003]
[1722267648647,1.62987287,68301.0,68300.0,2.46719638]
[1722267648879,1.62987287,68301.0,68300.0,2.45839638]
[1722267649074,1.62987287,68301.0,68300.0,2.44959638]
[1722267649289,1.62987287,68301.0,68300.0,2.43197894]
[1722267649494,1.62987287,68301.0,68300.0,2.42317022]
[1722267649864,1.62987287,68301.0,68300.0,2.4143615]
[1722267650040,1.83447387,68301.0,68300.0,2.4143615]
[1722267650242,1.56873488,68301.0,68300.0,2.4143615]
[1722267650946,1.5547522,68301.0,68300.0,2.4143615]
[1722267651101,1.5547522,68301.0,68300.0,2.40555442]
[1722267651102,1.59224438,68301.0,68300.0,2.40555442]
[1722267651285,1.59224438,68301.0,68300.0,2.39721442]
[1722267651485,1.59224438,68301.0,68300.0,2.38840734]
[1722267651710,1.88506538,68301.0,68300.0,2.37960734]
[1722267651920,1.88506538,68301.0,68300.0,2.37113734]
[1722267651921,1.57007438,68301.0,68300.0,2.37113734]
[1722267652124,1.57007438,68301.0,68300.0,2.34631734]
[1722267652125,1.56587703,68301.0,68300.0,2.34631734]
[1722267652351,1.56587703,68301.0,68300.0,2.33031734]
[1722267652560,1.56587703,68301.0,68300.0,2.31431734]
[1722267653022,1.56587703,68301.0,68300.0,2.30573734]
[1722267653227,1.56587703,68301.0,68300.0,2.28973734]
[1722267653228,0.26340403,68301.0,68300.0,2.28973734]
[1722267653469,0.34000617,68301.0,68300.0,2.28973734]
[1722267653910,1.06385302,68301.0,68300.0,2.20717181]
[1722267654123,1.13748759,68301.0,68300.0,2.01123343]
[1722267654259,1.14763733,68301.0,68300.0,2.01123343]
[1722267654830,1.14763733,68301.0,68300.0,0.19389563]
[1722267654831,1.44045833,68301.0,68300.0,0.19389563]
[1722267655179,1.44045833,68301.0,68300.0,0.14789563]
[1722267655180,1.56350622,68301.0,68300.0,0.14789563]
[1722267655358,1.56350622,68301.0,68267.0,0.07154355]
[1722267655359,0.1546,68289.0,68267.0,0.07154355]
[1722267655558,0.38558742,68301.0,68267.0,0.07154355]
[1722267655559,0.2901,68281.0,68267.0,0.07154355]
[1722267655802,0.2532995,68280.0,68269.0,0.42926131]
[1722267656013,0.2532995,68280.0,68267.0,0.07154355]
[1722267656014,0.24993785,68280.0,68274.0,0.07154355]
[1722267656446,0.24309939,68280.0,68274.0,0.07154355]
[1722267658129,40.07154355,68406.0,68274.0,0.07154355]
[1722267658130,0.1546,68290.0,68274.0,0.07154355]
[1722267658345,0.582885,68310.0,68274.0,0.07154355]
[1722267658346,0.40789456,68289.0,68274.0,0.07154355]
[1722267658549,0.01019517,68288.0,68274.0,0.07154355]
[1722267658758,0.01019517,68288.0,68260.0,0.0605]
[1722267658759,0.29769939,68286.0,68260.0,0.0605]
[1722267658985,0.05098463,68288.0,68261.0,0.50080486]
[1722267658986,0.1546,68281.0,68261.0,0.50080486]
[1722267659225,0.1546,68277.0,68261.0,0.50080486]
[1722267659533,0.1546,68277.0,68257.0,0.0822]
[1722267659534,0.292937,68274.0,68257.0,0.0822]
[1722267659753,0.1,68280.0,68253.0,0.07154355]
[1722267659754,0.1546,68272.0,68253.0,0.07154355]
[1722267659969,0.1546,68270.0,68254.0,0.42926131]
[1722267660174,0.023,68279.0,68250.0,0.000913]
[1722267660175,0.1546,68265.0,68250.0,0.000913]
[1722267660371,0.1546,68263.0,68250.0,0.000913]
[1722267660653,0.24309939,68264.0,68250.0,0.000913]
[1722267660654,0.29769939,68262.0,68250.0,0.000913]
[1722267660946,0.293012,68257.0,68250.0,0.000913]
[1722267661232,0.11021433,68261.0,68250.0,0.000913]
[1722267661233,0.25331372,68256.0,68250.0,0.000913]
[1722267661438,0.01021433,68255.0,68250.0,0.000913]
[1722267661643,0.14309939,68254.0,68251.0,0.07154355]
[1722267663103,0.14309939,68254.0,68250.0,0.000913]
[1722267663675,0.01021127,68253.0,68250.0,0.000913]
[1722267663925,0.14309939,68252.0,68250.0,0.000913]
[1722267664051,0.01021127,68251.0,68250.0,0.000913]
[1722267664257,0.15331066,68251.0,68250.0,0.000913]
[1722267666291,0.14309939,68251.0,68250.0,0.000913]
[1722267666508,0.15332278,68251.0,68250.0,0.000913]
[1722267669034,0.59287478,68251.0,68250.0,0.000913]
[1722267669244,0.74747478,68251.0,68250.0,0.000913]
[1722267669461,1.20799808,68251.0,68250.0,0.000913]
[1722267669656,1.2412238,68251.0,68250.0,0.000913]
[1722267671811,1.5342588,68251.0,68250.0,0.000913]
[1722267672029,1.2412238,68251.0,68250.0,0.000913]
[1722267672227,1.65838118,68251.0,68250.0,0.000913]
[1722267672432,1.65834697,68251.0,68250.0,0.000913]
[1722267672649,1.65834697,68251.0,68219.0,0.065]
[1722267672650,0.1546,68236.0,68219.0,0.065]
[1722267672971,0.59425,68236.0,68235.0,0.42926131]
[1722267673177,0.146566,68229.0,68219.0,0.065]
[1722267673436,0.15681852,68228.0,68219.0,0.065]
[1722267673633,0.15681852,68228.0,68215.0,0.07154355]
[1722267673634,0.15682052,68227.0,68226.0,0.07154355]
[1722267673842,0.44995952,68227.0,68226.0,0.07154355]
[1722267674047,0.15335091,68227.0,68215.0,0.07154355]
[1722267674251,0.30795091,68226.0,68215.0,0.07154355]
[1722267674463,0.01025152,68225.0,68215.0,0.07154355]
[1722267674658,0.146582,68221.0,68215.0,0.07154355]
[1722267674888,0.293157,68223.0,68215.0,0.07154355]
[1722267674889,0.146587,68219.0,68215.0,0.07154355]
[1722267675141,0.15335091,68218.0,68215.0,0.07154355]
[1722267675400,0.01025152,68217.0,68215.0,0.07154355]
[1722267675655,0.1,68225.0,68215.0,0.07154355]
[1722267675860,0.1546,68228.0,68215.0,0.07154355]
[1722267675861,0.1,68227.0,68224.0,0.07154355]
[1722267676276,0.01024191,68226.0,68224.0,0.07154355]
[1722267676453,0.14309939,68225.0,68216.0,0.0642]
[1722267676703,0.14309939,68225.0,68209.0,0.0649]
[1722267676704,0.14659,68218.0,68209.0,0.0649]
[1722267676909,0.14309939,68217.0,68209.0,0.0649]
[1722267677128,0.14309939,68217.0,68203.0,0.1433]
[1722267677129,0.29769939,68217.0,68203.0,0.1433]
[1722267677334,0.02300008,68216.0,68203.0,0.1433]
[1722267677539,0.14309939,68215.0,68214.0,0.07154355]
[1722267679565,0.1546,68225.0,68214.0,0.07154355]
[1722267679777,0.08822,68249.0,68207.0,0.07154355]
[1722267679778,0.1546,68223.0,68207.0,0.07154355]
[1722267679927,0.1546,68220.0,68218.0,0.07154355]
[1722267680228,0.123,68224.0,68211.0,0.07154355]
[1722267680229,0.29769939,68219.0,68211.0,0.07154355]
[1722267680638,0.02299941,68218.0,68211.0,0.07154355]
[1722267680836,0.14309939,68217.0,68211.0,0.07154355]
[1722267682766,0.13809939,68217.0,68211.0,0.07154355]
[1722267683584,0.146593,68216.0,68211.0,0.07154355]
[1722267683782,0.146593,68216.0,68204.0,0.07154355]
[1722267683783,0.14309939,68215.0,68204.0,0.07154355]
[1722267683988,0.14309939,68215.0,68211.0,0.000913]
[1722267683989,0.29769939,68215.0,68211.0,0.000913]
[1722267684168,0.146599,68213.0,68211.0,0.000913]
[1722267684363,0.14309939,68212.0,68211.0,0.000913]
[1722267684634,0.29997761,68212.0,68211.0,0.000913]
[1722267684868,0.15337661,68212.0,68211.0,0.000913]
[1722267685010,0.14309939,68212.0,68211.0,0.000913]
[1722267685371,0.1763646,68212.0,68211.0,0.000913]
[1722267685505,0.17636373,68212.0,68211.0,0.000913]
[1722267685935,0.76050516,68212.0,68211.0,0.000913]
[1722267686135,0.74776008,68212.0,68211.0,0.000913]
[1722267687966,1.13070639,68212.0,68211.0,0.000913]
[1722267688517,1.14094779,68212.0,68211.0,0.000913]
[1722267688721,1.13070639,68212.0,68211.0,0.000913]
[1722267688896,1.14094806,68212.0,68211.0,0.000913]
[1722267689301,0.16748943,68212.0,68211.0,0.000913]
[1722267689508,0.19049224,68212.0,68211.0,0.000913]
[1722267690372,0.18025057,68212.0,68211.0,0.000913]
[1722267690724,0.1905148,68212.0,68211.0,0.000913]
[1722267691084,0.02300281,68212.0,68211.0,0.146113]
[1722267691287,0.02300281,68212.0,68211.0,0.80746655]
[1722267691510,0.023,68251.0,68229.0,0.05]
[1722267691715,0.023,68251.0,68236.0,0.07154355]
[1722267691716,0.28962639,68247.0,68236.0,0.07154355]
[1722267691921,0.14309939,68247.0,68236.0,0.07154355]
[1722267692134,0.01024484,68246.0,68236.0,0.07154355]
[1722267692345,0.1546,68244.0,68236.0,0.07154355]
[1722267692560,0.15334423,68243.0,68236.0,0.07154355]
[1722267692732,0.01024484,68242.0,68236.0,0.07154355]
[1722267692935,0.14309939,68241.0,68236.0,0.07154355]
[1722267693134,0.01024484,68240.0,68236.0,0.07154355]
[1722267693346,0.14309939,68239.0,68236.0,0.07154355]
[1722267693706,0.14309939,68239.0,68224.0,0.17154355]
[1722267693707,0.01024299,68238.0,68226.0,0.05]
[1722267693911,0.01024299,68238.0,68228.0,0.05]
[1722267693912,0.14309939,68237.0,68228.0,0.05]
[1722267694161,0.14309939,68237.0,68229.0,0.05]
[1722267694411,0.14309939,68237.0,68228.0,0.05]
[1722267694580,0.14309939,68237.0,68231.0,0.07154355]
[1722267694783,0.01031033,68236.0,68231.0,0.07154355]
[1722267695010,0.14309939,68235.0,68231.0,0.07154355]
[1722267695678,0.14309939,68235.0,68221.0,0.1452]
[1722267695679,0.0102992,68234.0,68222.0,0.05]
[1722267695925,0.14309939,68233.0,68221.0,0.1452]
[1722267696173,0.0102992,68232.0,68222.0,0.05]
[1722267696348,0.0102992,68232.0,68226.0,0.07154355]
[1722267696349,0.14309939,68231.0,68226.0,0.07154355]
[1722267696483,0.0102992,68230.0,68226.0,0.07154355]
[1722267696683,0.14309939,68229.0,68226.0,0.07154355]
[1722267696983,0.0102992,68228.0,68226.0,0.07154355]
[1722267697556,0.14309939,68229.0,68226.0,0.07154355]
[1722267697881,0.01035508,68227.0,68223.0,0.05]
[1722267698006,0.14309939,68229.0,68226.0,0.07154355]
[1722267698417,0.01441749,68237.0,68226.0,0.07154355]
[1722267698418,0.01441749,68237.0,68228.0,0.05]
[1722267698766,0.01441749,68237.0,68226.0,0.07154355]
[1722267698767,0.1534783,68236.0,68229.0,0.05]
[1722267698969,0.1534783,68236.0,68233.0,0.07154355]
[1722267698970,0.03337174,68235.0,68233.0,0.07154355]
[1722267699125,0.02299283,68235.0,68234.0,0.141]
[1722267699323,0.01035465,68235.0,68234.0,0.141]
[1722267699745,0.01035465,68235.0,68234.0,0.191]
[1722267699982,0.146516,68252.0,68234.0,0.191]
[1722267699983,0.292977,68265.0,68236.0,0.05]
[1722267700190,0.292977,68265.0,68241.0,0.05]
[1722267700191,0.23219939,68256.0,68241.0,0.05]
[1722267700389,0.0891,68255.0,68247.0,0.07154355]
[1722267700623,0.15346221,68255.0,68254.0,0.07154355]
[1722267700810,0.1534558,68255.0,68254.0,0.07154355]
[1722267701229,0.14309939,68255.0,68254.0,0.07154355]
[1722267701430,0.14309939,68255.0,68243.0,0.1869]
[1722267701669,0.01418782,68259.0,68247.0,0.05]
[1722267701670,0.14309939,68254.0,68247.0,0.05]
[1722267701798,0.023,68271.0,68247.0,0.05]
[1722267701799,0.023,68282.0,68254.0,0.07154355]
[1722267701998,0.14309939,68270.0,68262.0,0.07154355]
[1722267702200,0.01030536,68269.0,68262.0,0.07154355]